[Event "EYCC Girls-U18 2019"]
[Site "Bratislava"]
[Date "2019.08.02"]
[Round "1.1"]
[White "Koljevic, Nikolina"]
[Black "Badelka, Olga"]
[Result "0-1"]
[ECO "B56"]
[WhiteElo "1960"]
[BlackElo "2386"]
[Annotator "NA"]
[PlyCount "88"]
[EventDate "2019.08.02"]
[EventType "swiss"]
[EventCountry "SVK"]
[SourceTitle "playchess.com"]
[Source "ChessBase"]
[SourceQuality "1"]
[TimeControl "40/5400+30:1800+30"]

1. e4 {[%emt 0:00:00]} c5 {[%emt 0:00:00]} 2. Nf3 {[%emt 0:00:00]} d6 {[%emt 0:00:02]} 3. d4 {[%emt 0:00:16]} cxd4 {[%emt 0:00:07]} 4. Nxd4 {[%emt 0:00:04]} Nf6 {[%emt 0:00:12]} 5. Nc3 {[%emt 0:00:17]} Nc6 {[%emt 0:00:22]} 6. g3 {[%emt 0:00:37]} g6 {[%emt 0:00:21]} 7. Bg2 {[%emt 0:00:26]} Nxd4 {[%emt 0:00:12]} 8. Qxd4 {[%emt 0:00:08]} Bg7 {[%emt 0:00:04]} 9. O-O {[%emt 0:01:36]} O-O {[%emt 0:00:06]} 10. Qb4 {[%emt 0:01:51]} a5 {[%emt 0:06:43]} 11. Qb3 {[%emt 0:03:41]} Qc7 {[%emt 0:09:57]} 12. Be3 {[%emt 0:10:59]} Be6 {[%emt 0:01:43]} 13. Nd5 {[%emt 0:00:27]} Nxd5 {[%emt 0:01:45]} 14. exd5 {[%emt 0:00:04]} Bf5 {[%emt 0:00:22]} 15. c3 {[%emt 0:05:23]} a4 {[%emt 0:05:56]} 16. Qa3 {[%emt 0:00:08]} b5 {[%emt 0:02:52]} 17. Rad1 {[%emt 0:03:59]} Rfb8 {[%emt 0:04:04]} 18. Rfe1 {[%emt 0:08:19]} Bf6 {[%emt 0:12:41]} 19. Bd4 {[%emt 0:09:42]} Bxd4 {[%emt 0:00:17]} 20. Rxd4 {[%emt 0:00:03]} Ra7 {[%emt 0:00:08]} 21. g4 {[%emt 0:10:44]} Bc8 {[%emt 0:01:32]} 22. h3 {[%emt 0:01:54]} Qc5 {[%emt 0:10:47]} 23. Qb4 {[%emt 0:06:12]} a3 {[%emt 0:04:09]} 24. b3 {[%emt 0:04:34]} Kf8 {[%emt 0:01:33]} 25. Qxc5 {[%emt 0:06:58]} dxc5 {[%emt 0:01:01]} 26. Rde4 {[%emt 0:00:59]} Ba6 {[%emt 0:07:30]} 27. Bf1 {[%emt 0:03:24]} Rd8 {[%emt 0:01:40]} 28. c4 {[%emt 0:01:43]} bxc4 {[%emt 0:06:04]} 29. Bxc4 {[%emt 0:00:06]} Bxc4 {[%emt 0:00:45]} 30. Rxc4 {[%emt 0:01:25]} Rxd5 {[%emt 0:00:26]} 31. Rec1 {[%emt 0:00:05]} Ra5 {[%emt 0:03:36]} 32. Ra4 {[%emt 0:02:43]} Rxa4 {[%emt 0:04:13]} 33. bxa4 {[%emt 0:00:01]} Ke8 {[%emt 0:03:43]} 34. Rc3 {[%emt 0:00:24]} Kd7 {[%emt 0:00:05]} 35. Rxa3 {[%emt 0:02:40]} Kc6 {[%emt 0:00:03]} 36. Kf1 {[%emt 0:00:48]} c4 {[%emt 0:02:55]} 37. a5 {[%emt 0:03:05]} Rd7 {[%emt 0:03:22]} 38. Ke2 {[%emt 0:02:54]} Kb5 {[%emt 0:00:19]} 39. Rc3 {[%emt 0:02:09]} Kb4 {[%emt 0:03:24]} 40. Rc2 {[%emt 0:00:00]} c3 {[%emt 0:00:00]} 41. f4 {[%emt 0:03:46]} Kc4 {[%emt 0:01:24]} 42. Ke1 {[%emt 0:03:20]} Ra7 {[%emt 0:05:00]} 43. Re2 {[%emt 0:01:06]} Kd3 {[%emt 0:00:51]} 44. Kd1 {[%emt 0:02:24]} Rb7 {[%emt 0:00:10]} 0-1

[Event "EYCC Girls-U18 2019"]
[Site "Bratislava"]
[Date "2019.08.02"]
[Round "1.2"]
[White "Afonasieva, Anna"]
[Black "Verbin, Valentina"]
[Result "1-0"]
[ECO "A46"]
[WhiteElo "2370"]
[BlackElo "1958"]
[Annotator "NA"]
[PlyCount "97"]
[EventDate "2019.08.02"]
[EventType "swiss"]
[EventCountry "SVK"]
[SourceTitle "playchess.com"]
[Source "ChessBase"]
[SourceQuality "1"]
[TimeControl "40/5400+30:1800+30"]

1. d4 {[%emt 0:00:00]} Nf6 {[%emt 0:00:00]} 2. Nf3 {[%emt 0:00:00]} e6 {[%emt 0:00:00]} 3. g3 {[%emt 0:00:00]} b6 {[%emt 0:00:00]} 4. Bg2 {[%emt 0:00:00]} Bb7 {[%emt 0:00:00]} 5. O-O {[%emt 0:00:00]} c5 {[%emt 0:00:05]} 6. c4 {[%emt 0:00:24]} cxd4 {[%emt 0:00:08]} 7. Nxd4 {[%emt 0:00:27]} Bxg2 {[%emt 0:00:11]} 8. Kxg2 {[%emt 0:00:04]} a6 {[%emt 0:00:33]} 9. Nc3 {[%emt 0:02:20]} Qc7 {[%emt 0:00:07]} 10. Qd3 {[%emt 0:01:29]} Qb7+ {[%emt 0:00:51]} 11. f3 {[%emt 0:00:39]} d6 {[%emt 0:00:25]} 12. e4 {[%emt 0:00:57]} Nbd7 {[%emt 0:03:51]} 13. b3 {[%emt 0:01:35]} Be7 {[%emt 0:00:47]} 14. Be3 {[%emt 0:02:07]} Rc8 {[%emt 0:03:34]} 15. Rad1 {[%emt 0:01:30]} O-O {[%emt 0:07:51]} 16. Nde2 {[%emt 0:04:08]} Ne5 {[%emt 0:06:07]} 17. Qd4 {[%emt 0:09:28]} b5 {[%emt 0:04:02]} 18. cxb5 {[%emt 0:00:30]} axb5 {[%emt 0:00:05]} 19. Rc1 {[%emt 0:00:44]} Rc7 {[%emt 0:09:34]} 20. Rfd1 {[%emt 0:05:14]} Rfc8 {[%emt 0:04:22]} 21. Qb6 {[%emt 0:06:38]} Qxb6 {[%emt 0:04:54]} 22. Bxb6 {[%emt 0:00:05]} Rb7 {[%emt 0:00:24]} 23. Be3 {[%emt 0:22:19]} Re8 {[%emt 0:06:05]} 24. a4 {[%emt 0:16:03]} bxa4 {[%emt 0:05:07]} 25. bxa4 {[%emt 0:00:04]} Rb3 {[%emt 0:12:50]} 26. Bf2 {[%emt 0:07:59]} g5 {[%emt 0:08:07]} 27. Nd4 {[%emt 0:02:37]} Rb2 {[%emt 0:05:21]} 28. Rb1 {[%emt 0:00:24]} Reb8 {[%emt 0:00:19]} 29. Rxb2 {[%emt 0:05:42]} Rxb2 {[%emt 0:00:04]} 30. a5 {[%emt 0:00:25]} Nc4 {[%emt 0:09:50]} 31. a6 {[%emt 0:02:27]} Ne3+ {[%emt 0:06:02]} 32. Kg1 {[%emt 0:00:07]} Nxd1 {[%emt 0:00:06]} 33. a7 {[%emt 0:00:12]} Nxf2 {[%emt 0:00:06]} 34. a8=Q+ {[%emt 0:00:05]} Kg7 {[%emt 0:00:05]} 35. Qa7 {[%emt 0:02:45]} Ng8 {[%emt 0:02:16]} 36. Nd5 {[%emt 0:03:02]} Nh3+ {[%emt 0:01:26]} 37. Kf1 Rf2+ {[%emt 0:01:49]} 38. Ke1 {[%emt 0:00:11]} exd5 {[%emt 0:00:33]} 39. Nf5+ {[%emt 0:00:26]} Kf6 {[%emt 0:00:34]} 40. Qd4+ {[%emt 0:00:00]} Ke6 {[%emt 0:00:00]} 41. Qxd5+ {[%emt 0:01:29]} Kd7 {[%emt 0:02:48]} 42. Qxf7 {[%emt 0:00:34]} g4 {[%emt 0:01:43]} 43. Qxg8 {[%emt 0:00:40]} gxf3 {[%emt 0:00:09]} 44. Nd4 {[%emt 0:01:58]} Rxh2 {[%emt 0:02:26]} 45. Nxf3 {[%emt 0:00:25]} Rh1+ {[%emt 0:00:29]} 46. Kd2 {[%emt 0:00:43]} Nf2 {[%emt 0:00:59]} 47. Ke3 {[%emt 0:00:10]} Nd1+ {[%emt 0:00:30]} 48. Kf4 {[%emt 0:00:15]} Rh6 {[%emt 0:00:33]} 49. Nd4 {[%emt 0:02:10]} 1-0

[Event "EYCC Girls-U18 2019"]
[Site "Bratislava"]
[Date "2019.08.02"]
[Round "1.3"]
[White "Koridze, Lile"]
[Black "Goltseva, Ekaterina"]
[Result "0-1"]
[ECO "E01"]
[WhiteElo "1950"]
[BlackElo "2304"]
[Annotator "NA"]
[PlyCount "80"]
[EventDate "2019.08.02"]
[EventType "swiss"]
[EventCountry "SVK"]
[SourceTitle "playchess.com"]
[Source "ChessBase"]
[SourceQuality "1"]
[TimeControl "40/5400+30:1800+30"]

1. d4 {[%emt 0:00:00]} Nf6 {[%emt 0:00:00]} 2. c4 {[%emt 0:00:00]} e6 {[%emt 0:00:00]} 3. g3 {[%emt 0:00:00]} d5 {[%emt 0:00:04]} 4. Bg2 {[%emt 0:00:00]} Bb4+ {[%emt 0:00:15]} 5. Bd2 {[%emt 0:00:00]} Be7 {[%emt 0:00:15]} 6. Nf3 {[%emt 0:00:05]} O-O {[%emt 0:00:12]} 7. O-O {[%emt 0:00:04]} Nbd7 {[%emt 0:00:26]} 8. Qc2 {[%emt 0:00:53]} c6 {[%emt 0:00:21]} 9. Bf4 {[%emt 0:01:25]} Ne4 {[%emt 0:00:48]} 10. b3 {[%emt 0:04:00]} f5 {[%emt 0:02:39]} 11. Nc3 {[%emt 0:03:46]} g5 {[%emt 0:01:50]} 12. Bc1 {[%emt 0:08:02]} Bf6 {[%emt 0:06:54]} 13. Ba3 {[%emt 0:12:44]} Rf7 {[%emt 0:07:12]} 14. Rad1 {[%emt 0:01:40]} Rg7 {[%emt 0:13:10]} 15. Bb2 {[%emt 0:17:16]} h5 {[%emt 0:07:37]} 16. Nxe4 {[%emt 0:05:47]} dxe4 {[%emt 0:08:36]} 17. Ne5 {[%emt 0:01:59]} Qc7 {[%emt 0:01:37]} 18. Qd2 {[%emt 0:15:51]} Kh7 {[%emt 0:11:47]} 19. Nxd7 {[%emt 0:06:48]} Bxd7 {[%emt 0:00:44]} 20. f3 {[%emt 0:03:43]} exf3 {[%emt 0:02:25]} 21. Rxf3 {[%emt 0:00:21]} Rf8 {[%emt 0:08:24]} 22. Qc2 {[%emt 0:03:07]} Kg8 {[%emt 0:03:49]} 23. e4 {[%emt 0:00:45]} h4 {[%emt 0:03:43]} 24. e5 {[%emt 0:03:46]} Be7 {[%emt 0:00:46]} 25. Qd2 {[%emt 0:01:22]} g4 {[%emt 0:05:46]} 26. Rf2 {[%emt 0:01:40]} Bg5 {[%emt 0:01:42]} 27. Qd3 {[%emt 0:00:21]} f4 {[%emt 0:01:24]} 28. Be4 {[%emt 0:00:53]} f3 {[%emt 0:07:16]} 29. Ba3 {[%emt 0:01:08]} Be7 {[%emt 0:00:37]} 30. Bxe7 {[%emt 0:00:53]} Rxe7 {[%emt 0:00:02]} 31. Qe3 {[%emt 0:01:43]} Rg7 {[%emt 0:03:16]} 32. gxh4 {[%emt 0:04:33]} Qd8 {[%emt 0:01:25]} 33. Qh6 {[%emt 0:00:29]} Qe7 {[%emt 0:00:44]} 34. Kh1 {[%emt 0:01:16]} Qf7 {[%emt 0:00:27]} 35. d5 {[%emt 0:00:16]} cxd5 {[%emt 0:00:26]} 36. cxd5 {[%emt 0:00:04]} Qf4 {[%emt 0:00:35]} 37. Qxf4 {[%emt 0:00:30]} Rxf4 {[%emt 0:00:04]} 38. Rd4 {[%emt 0:00:07]} Kf8 {[%emt 0:00:25]} 39. Rc4 {[%emt 0:01:31]} b5 {[%emt 0:00:31]} 40. Rd4 {[%emt 0:00:00]} exd5 {[%emt 0:00:00]} 0-1

[Event "EYCC Girls-U18 2019"]
[Site "Bratislava"]
[Date "2019.08.02"]
[Round "1.4"]
[White "Beydullayeva, Govhar"]
[Black "Nastase, Andreea-Cristina"]
[Result "1-0"]
[ECO "D11"]
[WhiteElo "2282"]
[BlackElo "1948"]
[Annotator "NA"]
[PlyCount "61"]
[EventDate "2019.08.02"]
[EventType "swiss"]
[EventCountry "SVK"]
[SourceTitle "playchess.com"]
[Source "ChessBase"]
[SourceQuality "1"]
[TimeControl "40/5400+30:1800+30"]

1. Nf3 {[%emt 0:00:00]} Nf6 {[%emt 0:00:00]} 2. d4 {[%emt 0:00:00]} d5 {[%emt 0:00:00]} 3. c4 {[%emt 0:00:00]} c6 {[%emt 0:00:00]} 4. e3 {[%emt 0:00:00]} dxc4 {[%emt 0:02:59]} 5. Bxc4 {[%emt 0:00:37]} b5 {[%emt 0:01:20]} 6. Bd3 {[%emt 0:01:09]} e6 {[%emt 0:08:51]} 7. O-O {[%emt 0:01:38]} Nbd7 {[%emt 0:02:35]} 8. a4 {[%emt 0:04:57]} b4 {[%emt 0:06:02]} 9. e4 {[%emt 0:00:33]} Be7 {[%emt 0:05:44]} 10. Nbd2 {[%emt 0:01:25]} c5 {[%emt 0:03:56]} 11. e5 {[%emt 0:08:24]} Nd5 {[%emt 0:01:44]} 12. Re1 {[%emt 0:04:53]} a5 {[%emt 0:05:30]} 13. Ne4 {[%emt 0:15:18]} cxd4 {[%emt 0:03:59]} 14. Bb1 {[%emt 0:04:01]} d3 {[%emt 0:03:30]} 15. Bxd3 {[%emt 0:07:09]} Nc5 {[%emt 0:04:45]} 16. Nxc5 {[%emt 0:02:40]} Bxc5 {[%emt 0:00:09]} 17. Ng5 {[%emt 0:07:08]} Be7 {[%emt 0:21:55]} 18. Qh5 {[%emt 0:04:22]} g6 {[%emt 0:10:31]} 19. Qg4 {[%emt 0:07:58]} Ba6 {[%emt 0:02:58]} 20. Be4 {[%emt 0:04:59]} Rc8 {[%emt 0:01:39]} 21. h4 {[%emt 0:03:03]} Bxg5 {[%emt 0:03:54]} 22. Bxg5 {[%emt 0:00:09]} Qd7 {[%emt 0:00:42]} 23. Bh6 {[%emt 0:04:01]} Bb7 {[%emt 0:01:43]} 24. Rad1 {[%emt 0:01:09]} Rc5 {[%emt 0:02:10]} 25. h5 {[%emt 0:07:10]} Qxa4 {[%emt 0:01:28]} 26. hxg6 {[%emt 0:02:07]} hxg6 {[%emt 0:00:05]} 27. Bxg6 {[%emt 0:01:13]} Rxh6 {[%emt 0:01:51]} 28. Qxe6+ Kd8 {[%emt 0:00:32]} 29. Qf6+ {[%emt 0:03:42]} Kc8 {[%emt 0:01:06]} 30. Bf5+ {[%emt 0:00:04]} Kb8 {[%emt 0:00:26]} 31. Qxh6 {[%emt 0:00:03]} 1-0

[Event "EYCC Girls-U18 2019"]
[Site "Bratislava"]
[Date "2019.08.02"]
[Round "1.5"]
[White "Stroganova, Karina"]
[Black "Antova, Gabriela"]
[Result "0-1"]
[ECO "E07"]
[WhiteElo "1875"]
[BlackElo "2257"]
[Annotator "NA"]
[PlyCount "136"]
[EventDate "2019.08.02"]
[EventType "swiss"]
[EventCountry "SVK"]
[SourceTitle "playchess.com"]
[Source "ChessBase"]
[SourceQuality "1"]
[TimeControl "40/5400+30:1800+30"]

1. d4 {[%emt 0:00:00]} d5 {[%emt 0:00:00]} 2. c4 {[%emt 0:00:01]} e6 {[%emt 0:02:19]} 3. Nf3 {[%emt 0:00:21]} Nf6 {[%emt 0:00:56]} 4. g3 {[%emt 0:00:20]} Be7 {[%emt 0:01:22]} 5. Bg2 {[%emt 0:00:20]} O-O {[%emt 0:00:25]} 6. O-O {[%emt 0:00:09]} c6 {[%emt 0:03:14]} 7. Nc3 {[%emt 0:02:31]} Nbd7 {[%emt 0:01:59]} 8. Qd3 {[%emt 0:01:32]} b6 {[%emt 0:03:31]} 9. e4 {[%emt 0:00:54]} Ba6 {[%emt 0:03:17]} 10. b3 {[%emt 0:13:20]} Rc8 {[%emt 0:05:28]} 11. Re1 {[%emt 0:08:29]} Bb4 {[%emt 0:20:08]} 12. e5 {[%emt 0:16:02]} dxc4 {[%emt 0:05:12]} 13. bxc4 {[%emt 0:04:19]} Nd5 {[%emt 0:02:08]} 14. Bd2 {[%emt 0:23:52]} Bxc3 {[%emt 0:06:12]} 15. Bxc3 {[%emt 0:00:23]} c5 {[%emt 0:01:16]} 16. Bd2 {[%emt 0:05:36]} h6 {[%emt 0:08:44]} 17. Rac1 {[%emt 0:00:40]} cxd4 {[%emt 0:02:34]} 18. Qxd4 {[%emt 0:02:15]} Ne7 {[%emt 0:01:18]} 19. Red1 {[%emt 0:02:29]} Nf5 {[%emt 0:04:51]} 20. Qf4 {[%emt 0:03:41]} Qc7 {[%emt 0:04:26]} 21. Bb4 {[%emt 0:00:46]} Nc5 {[%emt 0:00:18]} 22. Nd4 {[%emt 0:00:40]} Ne7 {[%emt 0:06:40]} 23. Nb5 {[%emt 0:01:27]} Bxb5 {[%emt 0:01:04]} 24. cxb5 {[%emt 0:00:08]} Ng6 {[%emt 0:00:05]} 25. Qe3 {[%emt 0:01:58]} Nxe5 {[%emt 0:02:26]} 26. Bxc5 {[%emt 0:00:36]} bxc5 {[%emt 0:00:08]} 27. f4 {[%emt 0:00:38]} Ng4 {[%emt 0:01:00]} 28. Qe2 {[%emt 0:00:38]} Nf6 {[%emt 0:02:02]} 29. Bc6 {[%emt 0:00:14]} Rfd8 {[%emt 0:03:16]} 30. Qc4 {[%emt 0:00:30]} Qb6 {[%emt 0:02:51]} 31. a4 {[%emt 0:00:17]} Rd4 {[%emt 0:00:24]} 32. Rxd4 {[%emt 0:04:08]} cxd4 {[%emt 0:00:01]} 33. Qc5 {[%emt 0:02:20]} Nd5 {[%emt 0:02:40]} 34. Qxb6 {[%emt 0:03:15]} axb6 {[%emt 0:00:07]} 35. Rc4 {[%emt 0:01:09]} Ne7 {[%emt 0:01:11]} 36. Kf2 {[%emt 0:00:28]} Rd8 {[%emt 0:02:34]} 37. Ke2 {[%emt 0:00:33]} f6 {[%emt 0:00:52]} 38. Kd3 {[%emt 0:00:54]} e5 {[%emt 0:00:13]} 39. fxe5 {[%emt 0:00:40]} fxe5 {[%emt 0:00:01]} 40. Be4 {[%emt 0:00:00]} Rd6 {[%emt 0:00:00]} 41. a5 {[%emt 0:07:14]} bxa5 {[%emt 0:02:47]} 42. Rc5 {[%emt 0:00:34]} a4 {[%emt 0:10:59]} 43. Rxe5 {[%emt 0:06:37]} Kf7 {[%emt 0:00:15]} 44. Rc5 {[%emt 0:01:33]} a3 {[%emt 0:03:27]} 45. Rc2 {[%emt 0:00:32]} Nd5 {[%emt 0:11:09]} 46. Bxd5+ {[%emt 0:10:52]} Rxd5 {[%emt 0:00:01]} 47. Ra2 {[%emt 0:00:13]} Rxb5 {[%emt 0:00:57]} 48. Rxa3 {[%emt 0:00:10]} Rb2 {[%emt 0:01:13]} 49. h4 {[%emt 0:01:51]} Rb4 {[%emt 0:00:23]} 50. Ke4 {[%emt 0:00:41]} Kg6 {[%emt 0:00:53]} 51. Ra5 {[%emt 0:02:50]} d3+ {[%emt 0:02:13]} 52. Kxd3 {[%emt 0:00:32]} Rb3+ {[%emt 0:00:06]} 53. Ke4 {[%emt 0:00:10]} Rxg3 {[%emt 0:00:04]} 54. Kf4 {[%emt 0:00:11]} Rg1 {[%emt 0:00:27]} 55. Rb5 {[%emt 0:00:31]} h5 {[%emt 0:01:08]} 56. Rb6+ {[%emt 0:03:51]} Kh7 {[%emt 0:00:07]} 57. Kf3 {[%emt 0:00:49]} Rg4 {[%emt 0:00:18]} 58. Rb5 {[%emt 0:00:18]} Rxh4 {[%emt 0:01:15]} 59. Kg3 {[%emt 0:00:16]} Rg4+ {[%emt 0:00:01]} 60. Kh3 {[%emt 0:00:16]} Kh6 {[%emt 0:00:29]} 61. Ra5 {[%emt 0:00:23]} Rb4 {[%emt 0:00:32]} 62. Rc5 {[%emt 0:00:13]} Rb3+ {[%emt 0:00:17]} 63. Kg2 {[%emt 0:00:19]} h4 {[%emt 0:00:22]} 64. Rc4 {[%emt 0:00:23]} Kh5 {[%emt 0:00:08]} 65. Rc5+ {[%emt 0:00:08]} g5 {[%emt 0:00:06]} 66. Kh2 {[%emt 0:00:07]} h3 {[%emt 0:03:08]} 67. Rc8 {[%emt 0:00:47]} Kh4 {[%emt 0:00:13]} 68. Rh8+ {[%emt 0:00:22]} Kg4 {[%emt 0:00:07]} 0-1

[Event "EYCC Girls-U18 2019"]
[Site "Bratislava"]
[Date "2019.08.02"]
[Round "1.6"]
[White "Gajcin, Marina"]
[Black "Belluire, Beatrice"]
[Result "1-0"]
[ECO "C11"]
[WhiteElo "2267"]
[BlackElo "1929"]
[Annotator "NA"]
[PlyCount "101"]
[EventDate "2019.08.02"]
[EventType "swiss"]
[EventCountry "SVK"]
[SourceTitle "playchess.com"]
[Source "ChessBase"]
[SourceQuality "1"]
[TimeControl "40/5400+30:1800+30"]

1. e4 {[%emt 0:00:00]} e6 {[%emt 0:00:00]} 2. d4 {[%emt 0:00:00]} d5 {[%emt 0:00:00]} 3. Nc3 {[%emt 0:00:00]} Nf6 {[%emt 0:00:00]} 4. e5 {[%emt 0:00:03]} Nfd7 {[%emt 0:00:00]} 5. Nce2 {[%emt 0:00:06]} c5 {[%emt 0:01:12]} 6. c3 {[%emt 0:00:06]} Nc6 {[%emt 0:02:02]} 7. f4 {[%emt 0:00:13]} Be7 {[%emt 0:03:40]} 8. Nf3 {[%emt 0:02:54]} b6 {[%emt 0:07:44]} 9. g3 {[%emt 0:07:05]} O-O {[%emt 0:01:14]} 10. Bh3 {[%emt 0:01:38]} cxd4 {[%emt 0:15:47]} 11. Nfxd4 {[%emt 0:15:00]} Nxd4 {[%emt 0:07:27]} 12. cxd4 {[%emt 0:05:21]} f5 {[%emt 0:03:43]} 13. O-O {[%emt 0:02:37]} Nb8 {[%emt 0:00:36]} 14. g4 {[%emt 0:17:35]} g6 {[%emt 0:11:19]} 15. Be3 {[%emt 0:10:32]} Bd7 {[%emt 0:02:02]} 16. Kh1 {[%emt 0:09:21]} Kh8 {[%emt 0:03:20]} 17. Rg1 {[%emt 0:02:37]} Nc6 {[%emt 0:02:40]} 18. Nc3 {[%emt 0:01:49]} Qe8 {[%emt 0:06:59]} 19. Bf1 {[%emt 0:05:14]} Rc8 {[%emt 0:03:41]} 20. Ba6 {[%emt 0:00:59]} Rd8 {[%emt 0:01:53]} 21. Be2 {[%emt 0:01:53]} Rg8 {[%emt 0:00:17]} 22. Qf1 {[%emt 0:01:00]} Qf7 {[%emt 0:08:07]} 23. Qh3 {[%emt 0:00:43]} Na5 {[%emt 0:06:11]} 24. Rad1 {[%emt 0:02:19]} Nc4 {[%emt 0:04:54]} 25. Bc1 {[%emt 0:00:07]} Na5 {[%emt 0:00:06]} 26. Bf3 {[%emt 0:01:36]} Bc8 {[%emt 0:00:08]} 27. Rde1 {[%emt 0:03:25]} Rge8 {[%emt 0:02:48]} 28. Rg2 {[%emt 0:01:27]} Rg8 {[%emt 0:00:22]} 29. Bd1 {[%emt 0:03:15]} Nc6 {[%emt 0:00:59]} 30. Qe3 {[%emt 0:00:48]} Na5 {[%emt 0:00:26]} 31. Reg1 {[%emt 0:00:26]} Nc4 {[%emt 0:01:51]} 32. Qf3 {[%emt 0:00:20]} Na5 {[%emt 0:00:17]} 33. h4 {[%emt 0:02:23]} Nc6 {[%emt 0:00:44]} 34. Be3 {[%emt 0:00:28]} Na5 {[%emt 0:00:03]} 35. Rh2 {[%emt 0:01:12]} Nc4 {[%emt 0:01:49]} 36. Bc1 {[%emt 0:00:23]} Na5 {[%emt 0:00:24]} 37. Qe2 {[%emt 0:01:52]} Nc6 {[%emt 0:01:42]} 38. Be3 {[%emt 0:00:11]} Na5 {[%emt 0:00:44]} 39. h5 {[%emt 0:00:47]} gxh5 {[%emt 0:00:32]} 40. g5 {[%emt 0:00:00]} h4 {[%emt 0:00:00]} 41. Rxh4 {[%emt 0:06:47]} Rg7 {[%emt 0:08:53]} 42. Qh2 {[%emt 0:06:11]} Bd7 {[%emt 0:02:59]} 43. Rh6 {[%emt 0:03:09]} Qg8 {[%emt 0:11:01]} 44. g6 {[%emt 0:02:25]} Nc4 {[%emt 0:00:56]} 45. gxh7 {[%emt 0:02:06]} Rxg1+ {[%emt 0:00:54]} 46. Bxg1 {[%emt 0:00:06]} Qg7 {[%emt 0:01:08]} 47. Rh3 {[%emt 0:04:24]} Bb4 {[%emt 0:07:56]} 48. Bf2 {[%emt 0:07:22]} Bf8 {[%emt 0:01:23]} 49. Bh4 {[%emt 0:00:55]} Be7 {[%emt 0:00:06]} 50. Rg3 {[%emt 0:02:37]} Qf7 {[%emt 0:00:43]} 51. Bh5 {[%emt 0:00:44]} 1-0

[Event "EYCC Girls-U18 2019"]
[Site "Bratislava"]
[Date "2019.08.02"]
[Round "1.7"]
[White "Kostecka, Marika"]
[Black "Nazarova, Anastasia"]
[Result "1/2-1/2"]
[ECO "B36"]
[WhiteElo "1924"]
[BlackElo "2149"]
[Annotator "NA"]
[PlyCount "144"]
[EventDate "2019.08.02"]
[EventType "swiss"]
[EventCountry "SVK"]
[SourceTitle "playchess.com"]
[Source "ChessBase"]
[SourceQuality "1"]
[TimeControl "40/5400+30:1800+30"]

1. e4 {[%emt 0:00:00]} c5 {[%emt 0:00:00]} 2. Nf3 {[%emt 0:00:00]} Nc6 {[%emt 0:00:00]} 3. d4 {[%emt 0:00:00]} cxd4 {[%emt 0:00:00]} 4. Nxd4 {[%emt 0:00:00]} g6 {[%emt 0:00:00]} 5. c4 {[%emt 0:00:00]} Nf6 {[%emt 0:00:00]} 6. Nc3 {[%emt 0:00:04]} d6 {[%emt 0:00:11]} 7. Nc2 {[%emt 0:00:14]} Bg7 {[%emt 0:00:36]} 8. Be2 {[%emt 0:00:18]} O-O {[%emt 0:00:31]} 9. O-O {[%emt 0:00:07]} Be6 {[%emt 0:01:47]} 10. Be3 {[%emt 0:00:24]} Qa5 {[%emt 0:09:40]} 11. Bd2 {[%emt 0:00:13]} Rfc8 {[%emt 0:01:58]} 12. f4 {[%emt 0:00:50]} a6 {[%emt 0:04:39]} 13. Kh1 {[%emt 0:10:46]} Qd8 {[%emt 0:03:02]} 14. Rc1 {[%emt 0:23:15]} Rab8 {[%emt 0:04:47]} 15. Qe1 {[%emt 0:06:04]} b5 {[%emt 0:24:09]} 16. cxb5 {[%emt 0:03:09]} axb5 {[%emt 0:00:07]} 17. Bxb5 {[%emt 0:00:48]} Na7 {[%emt 0:00:14]} 18. a4 {[%emt 0:23:30]} Nxb5 {[%emt 0:01:09]} 19. Nxb5 {[%emt 0:02:41]} Bc4 {[%emt 0:07:19]} 20. Rf3 {[%emt 0:07:12]} Bxb5 {[%emt 0:00:27]} 21. axb5 {[%emt 0:00:29]} Rxb5 {[%emt 0:00:15]} 22. b4 {[%emt 0:02:50]} Rb7 {[%emt 0:04:34]} 23. Rc3 {[%emt 0:03:13]} Rxc3 {[%emt 0:16:17]} 24. Bxc3 {[%emt 0:00:11]} Rc7 {[%emt 0:00:03]} 25. Ra1 {[%emt 0:07:54]} Rxc3 {[%emt 0:10:16]} 26. Qxc3 {[%emt 0:02:43]} Nxe4 {[%emt 0:00:05]} 27. Qf3 {[%emt 0:01:07]} Bxa1 {[%emt 0:00:16]} 28. Nxa1 {[%emt 0:00:22]} d5 {[%emt 0:04:06]} 29. h3 {[%emt 0:00:19]} Qb6 {[%emt 0:01:17]} 30. Nc2 {[%emt 0:01:12]} Qc7 {[%emt 0:01:09]} 31. Nd4 {[%emt 0:01:36]} Qc1+ {[%emt 0:01:32]} 32. Kh2 {[%emt 0:00:17]} Nd2 {[%emt 0:01:30]} 33. Qd3 {[%emt 0:01:57]} Nf1+ {[%emt 0:00:47]} 34. Kg1 {[%emt 0:00:33]} Ng3+ {[%emt 0:02:42]} 35. Kh2 {[%emt 0:00:54]} Nf1+ {[%emt 0:00:40]} 36. Kg1 {[%emt 0:00:09]} Qxf4 {[%emt 0:00:19]} 37. Nc6 {[%emt 0:01:42]} Ng3 {[%emt 0:01:30]} 38. Nxe7+ {[%emt 0:00:29]} Kf8 {[%emt 0:00:03]} 39. Nxd5 {[%emt 0:00:19]} Qc1+ {[%emt 0:00:33]} 40. Kh2 {[%emt 0:00:00]} Nf1+ {[%emt 0:00:00]} 41. Kg1 {[%emt 0:01:48]} Ne3+ {[%emt 0:02:39]} 42. Kh2 {[%emt 0:03:28]} Nxd5 {[%emt 0:00:56]} 43. Qxd5 {[%emt 0:00:06]} Qf4+ {[%emt 0:00:03]} 44. Kg1 {[%emt 0:00:25]} Qxb4 {[%emt 0:00:03]} 45. Qe5 {[%emt 0:00:49]} Qb6+ {[%emt 0:01:59]} 46. Kh1 {[%emt 0:01:26]} Kg8 {[%emt 0:01:34]} 47. Qe7 {[%emt 0:02:48]} Kg7 {[%emt 0:01:50]} 48. Qe4 {[%emt 0:00:58]} Qd6 {[%emt 0:00:33]} 49. Qe3 {[%emt 0:01:28]} h5 {[%emt 0:00:29]} 50. Qg5 {[%emt 0:01:26]} f6 {[%emt 0:02:32]} 51. Qe3 {[%emt 0:01:23]} Qe5 {[%emt 0:00:08]} 52. Qf3 {[%emt 0:00:42]} Kh6 {[%emt 0:00:58]} 53. Qa3 {[%emt 0:02:46]} Kg5 {[%emt 0:03:13]} 54. Qb4 {[%emt 0:00:26]} Qe3 {[%emt 0:02:42]} 55. Qc4 {[%emt 0:03:16]} Qf4 {[%emt 0:05:38]} 56. Qb5+ {[%emt 0:01:23]} f5 {[%emt 0:03:33]} 57. Qc5 {[%emt 0:01:29]} Kh4 {[%emt 0:04:57]} 58. Qc3 {[%emt 0:05:33]} Qf2 {[%emt 0:03:51]} 59. Qb4+ {[%emt 0:03:54]} f4 {[%emt 0:00:35]} 60. Qe4 {[%emt 0:01:21]} g5 {[%emt 0:00:44]} 61. Qg6 {[%emt 0:00:48]} Qe1+ {[%emt 0:00:53]} 62. Kh2 {[%emt 0:01:06]} Qg3+ {[%emt 0:00:32]} 63. Kg1 {[%emt 0:02:18]} Qe1+ {[%emt 0:00:26]} 64. Kh2 {[%emt 0:00:07]} Qe5 {[%emt 0:00:05]} 65. Kg1 {[%emt 0:01:51]} f3 {[%emt 0:00:55]} 66. Qc2 {[%emt 0:01:19]} Qe1+ {[%emt 0:00:16]} 67. Kh2 {[%emt 0:00:15]} Qg3+ {[%emt 0:00:13]} 68. Kg1 {[%emt 0:00:06]} fxg2 {[%emt 0:01:52]} 69. Qe4+ {[%emt 0:00:19]} Qf4 {[%emt 0:00:28]} 70. Qe1+ {[%emt 0:00:54]} Qg3 {[%emt 0:00:33]} 71. Qe4+ {[%emt 0:00:08]} Kxh3 {[%emt 0:00:30]} 72. Qh4+ {[%emt 0:00:11]} Qxh4 {[%emt 0:00:10]} 1/2-1/2